bitfinex/quotes_ETHUSD_20250219
["timestamp","ask_amount","ask_price","bid_price","bid_amount"]
[1739983468089,3.68386,2714.6,2714.1,5.37]
[1739983468431,0.03859205,2714.5,2714.2,0.8288]
[1739983468708,3.68373,2714.7,2714.2,0.8288]
[1739983468877,0.03847564,2714.4,2714.2,0.8288]
[1739983469079,3.68399,2714.5,2714.2,0.8288]
[1739983469274,0.03838067,2714.3,2714.2,0.8288]
[1739983469497,3.6838,2714.6,2714.2,0.8288]
[1739983469709,0.03857061,2714.5,2714.2,0.8288]
[1739983469921,0.03857061,2714.5,2714.1,5.37]
[1739983470123,3.68405,2714.4,2714.1,5.37]
[1739983470425,0.0385615,2714.3,2714.1,5.37]
[1739983470624,0.0385615,2714.3,2714.1,9.05446]
[1739983470793,3.68376,2714.7,2714.1,9.05446]
[1739983471126,0.03884638,2714.6,2714.1,9.05446]
[1739983471324,3.68378,2714.6,2714.1,9.05446]
[1739983471535,0.03875143,2714.5,2714.1,9.05446]
[1739983471677,3.68338,2714.9,2714.2,4.50018228]
[1739983471880,0.03912654,2714.8,2714.2,4.46334]
[1739983472305,0.03912654,2714.8,2714.2,0.7791]
[1739983472514,0.03912654,2714.8,2714.3,3.68417]
[1739983472809,0.03912654,2714.8,2714.2,1.8978329]
[1739983473003,3.72267654,2714.8,2714.2,5.5821529]
[1739983473306,0.03912654,2714.8,2714.2,5.5821529]
[1739983474016,0.03912654,2714.8,2714.3,3.68418]
[1739983474233,0.03912654,2714.8,2714.4,4.24221129]
[1739983474511,0.0390316,2714.7,2714.4,4.24221129]
[1739983474830,3.68337,2714.9,2714.4,4.24215129]
[1739983474982,0.03893666,2714.6,2714.4,4.24215129]
[1739983475181,5.20983762,2715.0,2714.4,4.24215129]
[1739983475412,0.03888124,2714.5,2714.4,3.68395]
[1739983476011,3.68365,2714.7,2714.2,1.8978329]
[1739983476189,0.03888124,2714.5,2714.2,0.7791]
[1739983476396,0.03909471,2714.6,2714.2,0.7791]
[1739983476703,5.20992762,2715.0,2714.3,3.68407]
[1739983476704,3.68337,2714.9,2714.3,3.68407]
[1739983476923,0.03927895,2714.8,2714.3,7.36818]
[1739983477095,0.03927895,2714.8,2714.4,3.68398]
[1739983477299,1.52659762,2715.0,2714.2,4.46334]
[1739983477503,0.03937388,2714.9,2714.4,3.68398]
[1739983477935,0.03937388,2714.9,2714.5,3.68384]
[1739983478117,0.03937388,2714.9,2714.7,3.68358]
[1739983478434,0.8068,2715.3,2714.6,0.7615]
[1739983478647,5.36,2715.7,2714.7,4.48189262]
[1739983478648,0.03773974,2714.8,2714.7,4.48189262]
[1739983478851,0.8068,2715.6,2715.0,3.68314]
[1739983479057,0.8068,2715.6,2715.1,0.7615]
[1739983479236,3.72089968,2715.5,2715.1,0.7615]
[1739983479958,3.68271,2715.4,2715.0,5.37]
[1739983480121,3.68304,2715.2,2715.0,5.37]
[1739983480320,0.84349564,2715.1,2715.0,5.37]
[1739983480945,4.52659564,2715.1,2715.0,5.37]
[1739983482055,0.84349564,2715.1,2715.0,5.37]
[1739983482254,0.84349564,2715.1,2714.6,3.68376]
[1739983482846,0.03669564,2715.1,2714.6,3.68376]
[1739983483060,3.71987564,2715.1,2714.5,3.68391]
[1739983483265,0.03669564,2715.1,2714.6,3.68377]
[1739983483642,0.03669564,2715.1,2714.5,5.1369684]
[1739983483812,3.71988564,2715.1,2714.6,0.8034]
[1739983484803,3.68334,2715.0,2714.4,6.1734]
[1739983485001,3.71989564,2715.1,2714.5,3.68384]
[1739983485228,0.0364761,2714.9,2714.5,3.68384]
[1739983485403,0.03688413,2715.0,2714.5,5.1363104]
[1739983485603,0.03666042,2714.8,2714.5,5.1363104]
[1739983485802,0.03675535,2714.9,2714.5,5.1363104]
[1739983486015,0.03656548,2714.7,2714.5,5.1363104]
[1739983486210,3.68331,2715.0,2714.5,1.4524704]
[1739983486535,3.68331,2715.0,2714.4,9.85738]
[1739983486733,0.03675535,2714.9,2714.4,9.85738]
[1739983486934,0.03675535,2714.9,2714.4,13.54135]
[1739983487136,0.03675535,2714.9,2714.4,9.85737]
[1739983487333,0.03675535,2714.9,2714.4,13.54135]
[1739983487537,0.03675535,2714.9,2714.5,1.4524684]
[1739983489404,3.68312,2715.1,2714.5,5.1363684]
[1739983489598,0.03626819,2714.8,2714.5,1.4524684]
[1739983489798,7.36634,2715.1,2714.5,1.4524684]
[1739983489799,3.68312,2715.1,2714.5,1.4524684]
[1739983490037,0.03617325,2714.7,2714.5,1.4524684]
[1739983490251,3.68312,2715.1,2714.6,1.49937984]
[1739983490409,3.68312,2715.1,2714.5,3.68391]
[1739983490919,0.03509637,2715.0,2714.5,3.68391]
[1739983491231,0.03509637,2715.0,2714.5,3.68389]
[1739983491634,3.68325,2715.0,2714.5,3.68389]
[1739983491857,0.03500144,2714.9,2714.5,3.68389]
[1739983492071,0.03500144,2714.9,2714.5,5.1363694]
[1739983494637,0.03500144,2714.9,2714.5,1.4524794]
[1739983495324,0.03500144,2714.9,2714.5,5.1363894]
[1739983495525,3.68364,2714.8,2714.4,6.1734]
[1739983495748,4.48235976,2714.8,2714.4,5.37]
[1739983495956,3.68372,2714.7,2714.4,5.37]
[1739983496256,0.03531692,2714.7,2714.4,5.37]
[1739983496629,4.44712,2714.8,2714.4,5.37]
[1739983496630,0.7636,2714.8,2714.4,5.37]
[1739983496936,4.44722,2714.8,2714.4,5.37]
[1739983497141,0.03523793,2714.7,2714.4,5.37]
[1739983497336,4.44722,2714.8,2714.4,5.37]
[1739983497541,3.71884333,2714.7,2714.4,5.37]
[1739983499050,0.03513333,2714.7,2714.4,5.37]
[1739983499386,0.7636,2714.8,2714.4,5.37]
[1739983499549,0.03503839,2714.6,2714.4,5.37]
[1739983499746,3.68366,2714.7,2714.4,5.37]
[1739983499961,0.03503839,2714.6,2714.4,5.37]
[1739983500160,0.03503839,2714.6,2714.2,7.51361]
[1739983500366,0.03503839,2714.6,2714.3,1.288361]
[1739983500550,3.68347,2714.9,2714.3,4.972541]
[1739983500851,0.03507593,2714.8,2714.4,0.80023976]
[1739983501070,0.03507593,2714.8,2714.5,3.68385]
[1739983501287,5.24596982,2715.2,2714.6,3.68368]
[1739983501582,4.49369,2715.2,2714.6,4.73718974]
[1739983501744,0.03512808,2715.1,2715.0,3.68324]
[1739983501930,0.7585,2715.7,2715.0,7.6051074]
[1739983502260,0.7585,2715.7,2715.2,3.68285]
[1739983502261,0.8121824,2715.7,2715.2,3.68285]
[1739983502462,0.0536824,2715.7,2715.4,3.68269]
[1739983502665,0.0536824,2715.7,2715.5,0.7596]
[1739983503675,3.68244,2715.6,2715.1,0.7596]
[1739983503972,4.5521224,2715.6,2715.1,0.7596]
[1739983504152,3.68259,2715.5,2715.0,5.37]
[1739983504969,3.68279,2715.4,2715.0,5.37]
[1739983505170,3.68298,2715.2,2715.0,5.37]
[1739983505357,0.8051,2715.1,2715.0,5.37]
[1739983505554,3.6834,2714.9,2714.3,0.7951]
[1739983505885,4.4882,2715.1,2714.3,0.7951]
[1739983505886,4.48802,2715.3,2714.4,3.68397]
[1739983506047,3.7369224,2715.0,2714.4,3.68397]
[1739983506440,3.68338,2714.9,2714.3,0.7951]
[1739983506672,3.68368,2714.7,2714.2,5.37]
[1739983507002,4.45569,2714.8,2714.2,5.37]
[1739983507157,3.68365,2714.7,2714.2,5.37]
[1739983507868,3.9396674,2714.8,2713.9,5.37]
[1739983508075,3.68405,2714.4,2713.9,5.37]
[1739983508472,3.68405,2714.4,2713.8,4.44793]
[1739983508694,3.68462,2714.0,2713.5,6.1637]
[1739983508859,3.68436,2714.2,2713.5,6.1637]
[1739983509194,7.36879,2714.2,2713.5,9.84897]
[1739983509393,3.68436,2714.2,2713.5,6.1637]
[1739983509591,3.68454,2714.1,2713.5,6.1637]
[1739983510100,4.2077753,2714.2,2713.5,6.1637]
[1739983510280,3.68451,2714.1,2713.5,6.1637]
[1739983511212,4.2077753,2714.2,2713.5,9.84896]
[1739983511412,4.2077753,2714.2,2713.5,6.1637]
[1739983511575,0.5234153,2714.2,2713.5,6.1637]
[1739983511775,3.68468,2714.0,2713.5,6.1637]
[1739983512407,0.8026,2713.9,2713.2,3.68563]
[1739983512762,0.8026,2714.1,2713.4,3.68537]
[1739983512990,0.8026,2714.1,2713.5,4.45505]
[1739983513302,6.1626,2714.3,2713.5,0.7698]
[1739983513604,10.9051713,2714.3,2713.5,0.7698]
[1739983513757,3.68442,2714.2,2713.5,0.7698]
[1739983513951,3.68442,2714.2,2713.5,4.45506]
[1739983514183,3.68462,2714.0,2713.5,0.7698]
[1739983514579,3.68522,2713.6,2713.2,0.8026]
[1739983515991,3.68537,2713.5,2713.0,5.37]
[1739983516504,3.68517,2713.6,2713.0,9.05594]
[1739983517014,3.68534,2713.5,2713.0,5.37]
[1739983517157,3.68527,2713.5,2713.0,5.37]
[1739983517662,0.7507,2713.7,2713.0,5.37]
[1739983517663,3.68549,2713.4,2713.0,5.37]
[1739983517860,3.68541,2713.4,2713.0,5.37]
[1739983518303,3.68535,2713.5,2713.0,5.37]
[1739983518788,3.68522,2713.6,2713.0,5.37]
[1739983518994,3.68536,2713.5,2713.0,5.37]
[1739983519882,3.68522,2713.6,2713.0,5.37]
[1739983520073,3.68557,2713.3,2713.0,5.37]
[1739983520410,3.68542,2713.4,2713.0,5.37]
[1739983520707,3.68528,2713.5,2713.0,5.37]
[1739983520883,0.51557402,2713.6,2713.0,5.37]
[1739983521085,3.68546,2713.4,2713.0,5.37]
[1739983521485,3.68539,2713.5,2713.0,5.37]
[1739983521693,4.43581,2713.7,2713.0,9.05595]
[1739983521906,3.68488,2713.8,2713.1,3.72257711]
[1739983522072,3.68507,2713.7,2713.1,3.68582]
[1739983522410,3.68507,2713.7,2713.2,1.274174]
[1739983522998,3.68549,2713.4,2713.0,5.37]
[1739983524713,4.47179,2713.4,2713.0,5.37]
[1739983524893,3.68565,2713.3,2713.0,5.37]
[1739983525093,3.68565,2713.3,2712.7,5.37]
[1739983525411,3.68575,2713.2,2712.7,5.37]
[1739983525721,3.68622,2712.8,2712.7,5.37]
[1739983525888,3.68642,2712.7,2712.3,0.757]
[1739983526095,3.68642,2712.7,2712.2,5.37]
[1739983526612,3.68676,2712.5,2712.0,6.127]
[1739983526983,3.68673,2712.5,2712.0,6.127]
[1739983527180,1.49286209,2712.9,2712.0,6.127]
[1739983527412,3.6869,2712.4,2712.0,6.127]
[1739983528080,3.68665,2712.5,2712.0,5.37]
[1739983528282,3.68657,2712.6,2711.9,3.68742]
[1739983528583,3.68677,2712.4,2711.7,5.37]
[1739983528803,0.7694,2712.5,2711.8,0.7756]
[1739983528988,4.45603,2712.5,2711.8,0.7756]
[1739983529208,4.45603,2712.5,2711.8,4.46309]
[1739983529814,3.68706,2712.2,2711.8,0.7756]
[1739983530027,1.583664,2712.5,2711.8,0.7756]
[1739983530177,3.68704,2712.2,2711.8,0.7756]
[1739983530384,3.6872,2712.1,2711.8,0.7756]
[1739983530781,3.6872,2712.1,2711.7,5.37]
[1739983531247,3.68735,2712.0,2711.7,5.37]
[1739983531414,3.68758,2711.8,2711.7,5.37]
[1739983531601,3.68758,2711.8,2711.4,0.818]
[1739983531804,4.46397,2712.0,2711.4,0.818]
[1739983531997,3.68706,2712.2,2711.4,3.9855674]
[1739983532202,4.44477,2712.3,2711.6,3.68784]
[1739983532397,1.570958,2712.3,2711.6,3.68784]
[1739983532727,0.7578,2712.3,2711.7,3.68772]
[1739983532928,4.47627,2712.6,2711.9,3.68739]
[1739983533131,3.68692,2712.3,2711.8,0.7908]
[1739983533556,3.68672,2712.5,2711.8,4.4783]
[1739983533979,4.4762,2712.6,2711.9,3.6874]
[1739983534269,0.7897,2712.6,2712.1,3.68717]
[1739983534418,0.7897,2712.6,2712.0,3.68723]
[1739983534619,4.47624,2712.6,2712.0,3.68723]
[1739983535115,3.68674,2712.5,2711.9,0.81657]
[1739983535317,3.68677,2712.4,2711.9,0.81657]
[1739983535517,3.68677,2712.4,2711.9,4.50401]
[1739983535716,3.68688,2712.4,2711.9,0.81657]
[1739983536020,3.68688,2712.4,2711.8,0.7908]
[1739983536021,3.68663,2712.5,2711.8,0.7908]
[1739983536334,3.68697,2712.3,2711.8,0.7908]
[1739983536864,3.68697,2712.3,2711.7,3.0]
[1739983536865,3.68719,2712.1,2711.6,6.1972]
[1739983537146,3.68671,2712.5,2711.6,6.1972]
[1739983537346,4.4762,2712.6,2711.9,3.68744]
[1739983537532,3.68677,2712.4,2711.7,7.37517]
[1739983537737,3.68677,2712.4,2711.7,7.3752]
[1739983537953,3.68677,2712.4,2711.7,3.68758]
[1739983538162,3.68677,2712.4,2711.8,3.68758]
[1739983538737,3.68697,2712.3,2711.6,6.1972]
[1739983539052,0.7897,2712.6,2711.6,6.1972]
[1739983539217,3.68693,2712.3,2711.7,3.68763]
[1739983539718,7.37391,2712.3,2711.7,7.37527]
[1739983539919,3.68693,2712.3,2711.7,3.68763]
[1739983540119,0.7897,2712.6,2711.6,6.1972]
[1739983540321,3.68699,2712.3,2711.6,6.1972]
[1739983540515,3.68677,2712.4,2711.8,3.68756]
[1739983541355,0.447611,2712.5,2711.9,3.68731]
[1739983541554,0.7897,2712.6,2711.9,3.68745]
[1739983541758,7.37339,2712.5,2711.9,3.68745]
[1739983542141,3.68666,2712.5,2711.9,3.68745]
[1739983542461,3.68666,2712.5,2711.7,3.68772]
[1739983542462,3.68675,2712.5,2711.7,3.68772]
[1739983542661,4.47626,2712.6,2711.8,3.68745]
[1739983542883,4.47626,2712.6,2711.8,0.988465]
[1739983543083,0.7897,2712.6,2712.1,3.68706]
[1739983543291,0.8062,2712.8,2712.3,0.8135]
[1739983544076,4.49252,2712.8,2712.3,0.8135]
[1739983544975,0.8062,2712.8,2712.3,0.8135]
[1739983545174,3.68636,2712.7,2712.3,0.8135]
[1739983545385,3.68656,2712.6,2712.0,4.49531]
[1739983545583,3.68656,2712.6,2712.0,4.91496833]
[1739983545770,3.68683,2712.4,2711.9,5.37]
[1739983545932,4.45173,2712.4,2711.9,5.37]
[1739983546496,3.68691,2712.3,2711.9,5.37]
[1739983546703,0.7649,2712.4,2711.9,5.37]
[1739983546975,0.7649,2712.4,2711.9,9.05737]
[1739983547339,3.68691,2712.3,2711.9,5.37]
[1739983547535,3.68644,2712.7,2711.9,5.37]
[1739983547775,0.7852,2712.6,2712.1,3.6871]
[1739983548284,3.68623,2712.8,2712.2,3.68702]
[1739983548584,0.8199,2712.9,2712.4,0.7624]
[1739983548734,0.8199,2713.3,2712.8,3.68615]
[1739983549082,0.7715,2713.5,2712.9,4.46228]
[1739983549246,3.68526,2713.6,2713.0,3.68594]
[1739983549873,7.37052,2713.6,2713.0,3.68594]
[1739983550060,1.13999,2713.7,2713.0,3.68594]
[1739983550061,1.13999,2713.7,2713.0,3.68587]
[1739983550261,4.82502,2713.7,2713.0,3.68587]
[1739983550437,4.82502,2713.7,2713.0,7.37173]
[1739983550642,4.82502,2713.7,2713.0,3.68586]
[1739983550842,4.82502,2713.7,2713.1,3.6858]
[1739983551238,3.68519,2713.6,2712.9,9.83226]
[1739983551443,3.68519,2713.6,2712.9,10.815486]
[1739983551754,3.68519,2713.6,2713.0,3.68594]
[1739983551950,3.68519,2713.6,2712.9,7.129426]
[1739983552272,3.68519,2713.6,2713.0,3.68595]
[1739983552476,3.68516,2713.6,2713.0,3.68595]
[1739983552648,3.68516,2713.6,2713.0,5.1360976]
[1739983552969,3.68516,2713.6,2713.0,5.1360776]
[1739983553774,3.68516,2713.6,2713.0,5.1360276]
[1739983554072,0.7715,2713.7,2713.0,5.1360276]
[1739983554276,0.7715,2713.7,2713.1,3.68569]
[1739983554445,4.4565,2713.7,2713.1,4.81389376]
[1739983554643,3.685,2713.7,2713.1,4.81389376]
[1739983554862,3.68502,2713.7,2713.1,4.81389376]
[1739983555240,3.68502,2713.7,2713.1,8.49963376]
[1739983555472,3.68502,2713.7,2713.1,4.81389376]
[1739983556557,3.68495,2713.8,2713.1,4.81389376]
[1739983556753,0.8333,2713.9,2713.3,3.68546]
[1739983556954,0.8333,2713.9,2713.4,0.7845]
[1739983557157,0.8333,2713.9,2713.4,4.46989]
[1739983557697,0.8333,2713.9,2713.5,3.68523]
[1739983557882,0.8286,2714.1,2713.4,4.46982]
[1739983558041,4.671893,2714.0,2713.4,4.46982]
[1739983558243,0.987293,2714.0,2713.4,4.46982]
[1739983558444,0.8286,2714.1,2713.5,3.68524]
[1739983558703,0.8286,2714.1,2713.4,4.50673249]
[1739983558865,0.8286,2714.3,2713.4,9.3589165]
[1739983559070,0.8286,2714.3,2713.8,3.6848]
[1739983559789,3.68392,2714.5,2713.9,3.68472]
[1739983559951,3.68406,2714.4,2713.8,0.8327]
[1739983560149,4.43727346,2714.4,2713.8,4.51756]
[1739983560350,0.75321346,2714.4,2713.8,0.8327]
[1739983560550,0.8259,2714.6,2713.8,0.8327]
[1739983560551,0.8259,2714.6,2714.2,3.68425]
[1739983560747,8.5812498,2715.0,2714.2,4.49635]
[1739983560748,0.7618,2714.9,2714.2,4.49635]
[1739983560964,0.0536824,2715.0,2714.4,3.68402]
[1739983561161,0.0536824,2715.0,2714.7,0.8121]
[1739983561363,0.0536824,2715.0,2714.7,0.84893323]
[1739983561548,0.0536824,2715.0,2714.7,0.8121]
[1739983561749,0.0536824,2715.0,2714.7,4.49572]
[1739983562166,0.0536824,2715.0,2714.8,3.68343]
[1739983562654,0.0536824,2715.0,2714.9,3.68337]
[1739983562859,0.0536824,2715.0,2714.7,0.8121]
[1739983563311,0.0536824,2715.0,2714.9,3.68337]
[1739983563469,0.0536824,2715.0,2714.9,10.65696294]
[1739983563792,0.0536824,2715.0,2714.9,15.9901374]
[1739983563959,0.0536824,2715.0,2714.9,13.37257]
[1739983564376,0.0536824,2715.0,2714.9,12.82257]
[1739983564605,0.0536824,2715.0,2714.9,15.75855731]
[1739983565473,0.0536824,2715.0,2714.9,6.1392]
[1739983565688,0.0536824,2715.0,2714.9,9.82257]
[1739983566894,0.0536824,2715.0,2714.9,6.1392]
[1739983567181,0.0536824,2715.0,2714.6,0.7758]
[1739983567324,0.0536824,2715.0,2714.5,5.37]
[1739983567627,3.7369424,2715.0,2714.5,5.37]
[1739983567786,3.68362,2714.8,2714.5,5.37]
[1739983568833,0.50324664,2715.0,2714.1,5.37]
[1739983568994,0.0536824,2715.0,2714.3,3.68411]
[1739983569332,0.0536824,2715.0,2714.5,4.4964]
[1739983569501,0.0536824,2715.0,2714.3,4.49661]
[1739983569901,0.0536824,2715.0,2714.4,3.72080686]
[1739983570114,0.0536824,2715.0,2714.4,0.03683686]
[1739983570429,3.68347,2714.9,2714.3,0.8125]
[1739983570602,0.50324164,2715.0,2714.4,3.72084684]
[1739983570808,4.18657164,2715.0,2714.3,4.4966]
[1739983571015,3.68338,2714.9,2714.3,8.1807]
[1739983571215,3.68352,2714.8,2714.3,0.8125]
[1739983571414,3.68338,2714.9,2714.3,0.8125]
[1739983571619,4.47035616,2714.9,2714.1,9.83958]
[1739983571850,4.47936,2714.7,2714.1,6.1552]
[1739983572008,4.47936,2714.7,2714.1,5.37]
[1739983572568,4.47936,2714.7,2713.9,3.68465]
[1739983572569,4.47942,2714.7,2713.9,5.37]
[1739983572840,3.68379,2714.6,2714.0,3.68456]
[1739983573829,0.7957,2714.7,2714.1,3.68437]
[1739983574019,0.7957,2714.7,2714.1,3.68438]
[1739983574430,0.78697616,2714.9,2714.2,0.03684225]
[1739983574739,3.68353,2714.8,2714.3,0.7911]
[1739983575040,0.8556824,2715.0,2714.4,3.68398]
[1739983575248,0.8556824,2715.0,2714.5,3.6839]
[1739983575412,4.5389324,2715.0,2714.5,3.6839]
[1739983575743,0.8556824,2715.0,2714.5,3.6839]
[1739983575946,0.8556824,2715.0,2714.3,0.7911]
[1739983576107,8.84393064,2715.0,2714.3,0.7911]
[1739983576305,5.16056064,2715.0,2714.3,4.47526]
[1739983576510,3.68347,2714.9,2714.3,0.7911]
[1739983576944,3.68337,2714.9,2714.3,0.7911]
[1739983577159,3.68337,2714.9,2714.3,4.47528]
[1739983577440,3.68351,2714.8,2714.2,3.68432]
[1739983577938,4.56775206,2714.9,2714.3,3.68417]
[1739983577939,0.88438206,2714.9,2714.3,3.68417]
[1739983578150,0.8556824,2715.0,2714.5,3.68381]
[1739983578307,0.8556824,2715.0,2714.2,3.1675674]
[1739983578517,3.68353,2714.8,2714.1,4.46283]
[1739983578820,3.68353,2714.8,2714.1,4.46284]
[1739983579134,0.8556824,2715.0,2714.5,3.68391]
[1739983579649,4.5389524,2715.0,2714.5,3.68391]
[1739983580432,0.8556824,2715.0,2714.5,3.68391]
[1739983580633,0.8556824,2715.0,2714.5,4.42071]
[1739983580933,3.68339,2714.9,2714.5,0.7368]
[1739983581109,3.68339,2714.9,2714.2,3.0]
[1739983581513,4.5389224,2715.0,2714.3,3.68409]
[1739983581868,0.8556824,2715.0,2714.5,3.68384]
[1739983582072,0.0536824,2715.0,2714.6,4.48051]
[1739983582533,0.0536824,2715.0,2714.6,0.7968]
[1739983582742,3.68359,2714.8,2714.3,0.8128]
[1739983582933,0.8132,2714.7,2714.3,0.8128]
[1739983583753,0.8132,2714.7,2714.3,4.49698]
[1739983584365,0.7599,2714.9,2714.4,3.68397]
[1739983584918,0.0536824,2715.0,2714.7,3.68364]
[1739983585214,0.0536824,2715.0,2714.7,5.209605]
[1739983585551,0.0536824,2715.0,2714.9,3.68337]
[1739983587041,0.0536824,2715.0,2714.9,4.51209803]
[1739983587242,0.0536824,2715.0,2714.9,12.88209803]
[1739983587442,0.0536824,2715.0,2714.9,12.84527]
[1739983587643,0.0536824,2715.0,2714.9,15.78057724]
[1739983594251,0.0536824,2715.0,2714.9,16.33057724]
[1739983594871,0.0536824,2715.0,2714.9,15.78057724]
[1739983595278,0.0536824,2715.0,2714.9,24.70057724]
[1739983595643,0.0536824,2715.0,2714.9,25.25057724]
[1739983598244,0.0536824,2715.0,2714.9,25.52433581]
[1739983600179,0.0536824,2715.0,2714.9,26.25347326]
[1739983601949,4.48186,2716.7,2716.0,3.68188]
[1739983602147,3.68109,2716.6,2716.1,3.68174]
[1739983602383,0.8008,2716.7,2716.1,3.68174]
[1739983602650,4.48175,2716.7,2716.1,7.36341]
[1739983602900,0.8008,2716.7,2716.2,3.68154]
[1739983603196,4.48175,2716.7,2716.2,3.68154]
[1739983603552,0.8008,2716.7,2716.2,3.68154]
[1739983603745,4.48175,2716.7,2716.2,3.68154]
[1739983604810,0.8008,2716.7,2716.2,3.68154]
[1739983605211,0.8008,2716.7,2716.2,0.368154]
[1739983605495,0.8008,2716.7,2716.4,3.68124]
[1739983605697,4.48177,2716.7,2716.1,0.7639]
[1739983605843,3.68115,2716.6,2715.9,6.68188]
[1739983606052,3.68115,2716.6,2716.0,3.68178]
[1739983606365,3.68115,2716.6,2716.1,3.68167]
[1739983607097,3.68114,2716.6,2715.9,3.6819]
[1739983607392,3.68114,2716.6,2716.0,3.68177]
[1739983607599,3.68114,2716.6,2716.1,3.68173]
[1739983608523,0.8008,2716.7,2716.1,3.68173]
[1739983608677,0.8008,2716.7,2716.2,3.6816]
[1739983609069,0.8008,2716.7,2716.0,3.68177]
[1739983609275,3.68117,2716.6,2716.0,0.746827]
[1739983609476,3.68117,2716.6,2716.0,4.428637]
[1739983609908,0.7895,2716.3,2715.8,3.0]
[1739983610223,4.47105,2716.3,2715.8,3.0]
[1739983610385,0.7895,2716.3,2715.8,6.68213]
[1739983610818,0.7895,2716.3,2715.8,3.0]
[1739983610980,0.7895,2716.3,2715.8,6.68208]
[1739983611325,0.7895,2716.3,2715.8,8.255469]
[1739983611489,0.7895,2716.3,2715.8,4.573439]
[1739983611695,0.8224,2716.6,2716.2,3.68159]
[1739983612015,0.8224,2716.6,2716.2,3.68148]
[1739983612376,0.8224,2716.6,2716.3,3.68147]
[1739983612573,3.68074,2716.9,2716.4,3.68132]
[1739983612812,0.7924,2716.8,2716.4,3.68132]
[1739983614095,5.36,2717.1,2716.6,3.68106]
[1739983614279,5.36,2717.1,2716.4,4.47232]
[1739983614280,0.7612,2717.0,2716.4,4.47232]
[1739983614476,4.44181,2717.0,2716.4,0.791]
[1739983614723,0.7612,2717.0,2716.5,3.6811]
[1739983615336,4.44185,2717.0,2716.4,4.47233]
[1739983615680,2.109436,2717.0,2716.1,0.8295]
[1739983616017,0.8235,2716.7,2716.1,9.88118]
[1739983616191,4.50448,2716.7,2716.1,9.88118]
[1739983616393,4.50448,2716.7,2716.1,9.05168]
[1739983616733,3.68114,2716.6,2716.1,5.37]
[1739983617048,3.68109,2716.6,2716.1,9.05166]
[1739983617922,4.50452,2716.7,2716.1,9.05166]
[1739983618246,4.50454,2716.7,2716.1,5.37]
[1739983618537,3.68109,2716.6,2716.1,9.05173]
[1739983619522,3.68109,2716.6,2716.1,5.37]
[1739983620024,3.68109,2716.6,2716.1,9.05172]
[1739983620227,0.7534,2716.4,2716.1,5.37]
[1739983620393,3.68153,2716.3,2716.1,5.37]
[1739983620887,4.43475,2716.4,2716.1,5.37]
[1739983621095,3.68177,2716.1,2715.6,5.37]
[1739983621300,4.124875,2716.4,2715.6,5.37]
[1739983621500,0.7921,2716.3,2715.7,7.3645]
[1739983621804,0.7921,2716.3,2715.7,3.68222]
[1739983622262,0.7921,2716.3,2715.7,7.36444]
[1739983622459,4.47359,2716.3,2715.7,7.3644]
[1739983622802,4.47359,2716.3,2715.7,3.68218]
[1739983622997,0.7921,2716.3,2715.7,3.68218]
[1739983623299,0.7795,2716.5,2716.0,3.68187]
[1739983624127,0.7795,2716.5,2715.8,3.7786]
[1739983624295,4.46072,2716.5,2716.0,3.6818]
[1739983624503,0.7795,2716.5,2716.0,3.6818]
[1739983624723,0.7795,2716.5,2715.9,3.68193]
[1739983625050,3.6816,2716.3,2716.0,5.37]
[1739983625550,4.45321,2716.2,2716.0,5.37]
[1739983625731,3.68174,2716.1,2716.0,5.37]
[1739983627396,3.68211,2715.9,2715.4,5.37]
[1739983627758,3.68218,2715.8,2715.4,5.37]
[1739983627958,0.7956,2715.7,2715.4,5.37]
[1739983628190,0.7956,2715.7,2715.4,6.275295]
[1739983629192,0.7956,2716.3,2715.5,3.68248]
[1739983629368,0.7956,2716.3,2715.7,3.68227]
[1739983629570,0.7956,2716.3,2715.9,3.682]
[1739983630168,4.50351,2716.7,2716.0,4.12923]
[1739983630502,3.68127,2716.5,2716.0,5.37]
[1739983630684,7.36257,2716.5,2716.0,5.37]
[1739983631087,3.68127,2716.5,2716.0,5.37]
[1739983631293,0.8225,2716.7,2716.1,3.68163]
[1739983631494,0.8225,2716.7,2716.0,5.37]
[1739983631679,3.6812,2716.6,2716.0,5.37]
[1739983632178,8.18447,2716.7,2716.1,3.68173]
[1739983632374,4.50353,2716.7,2716.1,3.68173]
[1739983632598,0.8225,2716.7,2716.2,3.6816]
[1739983632775,0.8225,2716.7,2716.2,4.5084]
[1739983633212,0.8225,2716.7,2716.3,3.718212]
[1739983633409,0.8225,2716.7,2716.4,3.68127]
[1739983633813,0.8225,2716.7,2716.2,2.182813]
[1739983633984,0.8225,2716.7,2716.0,5.37]
[1739983634183,3.68109,2716.6,2716.0,9.05177]
[1739983634367,3.68109,2716.6,2716.1,3.68172]
[1739983634563,3.68109,2716.6,2716.0,5.37]
[1739983634847,3.68135,2716.4,2716.0,5.37]
[1739983635409,3.68122,2716.5,2716.0,5.37]
[1739983635998,3.68126,2716.5,2716.0,5.37]
[1739983636876,3.68108,2716.6,2716.0,9.05186]
[1739983637083,0.8225,2716.7,2716.2,3.68155]
[1739983637483,0.8225,2716.7,2716.2,3.68156]
[1739983637677,0.8225,2716.7,2716.1,5.03286]
[1739983637877,3.68109,2716.6,2716.1,5.03286]
[1739983638083,3.68109,2716.6,2716.1,1.35125]
[1739983638702,3.68109,2716.6,2716.1,5.03299]
[1739983638882,3.68129,2716.5,2716.0,5.37]
[1739983639217,3.68129,2716.5,2716.0,9.05179]
[1739983639394,3.68142,2716.4,2716.0,5.37]